bitfinex/quotes_SOLUSD_20250306
["timestamp","ask_amount","ask_price","bid_price","bid_amount"]
[1741259136608,20.0,151.77,151.66,0.033]
[1741259136795,80.8,151.76,151.67,0.14216157]
[1741259136994,80.8,151.76,151.66,33.52102603]
[1741259137423,18.64964886,151.75,151.66,0.033]
[1741259137728,23.0657,151.74,151.66,0.033]
[1741259138512,20.0,151.71,151.66,0.033]
[1741259139829,6.5919,151.7,151.66,0.033]
[1741259140917,6.5919,151.7,151.66,0.17516157]
[1741259141634,16.4782,151.72,151.66,0.033]
[1741259141937,23.0692,151.72,151.66,0.033]
[1741259142525,80.8,151.71,151.66,0.033]
[1741259142841,80.8,151.71,151.67,0.14216157]
[1741259143803,23.0717,151.7,151.67,0.14216157]
[1741259144607,6.5919,151.7,151.67,0.14216157]
[1741259144813,80.8,151.69,151.64,17.15640039]
[1741259145029,20.0,151.66,151.64,3.9e-07]
[1741259145237,80.8,151.66,151.58,0.14216157]
[1741259145436,6.0502,151.67,151.56,33.48802603]
[1741259145853,87.3936,151.66,151.56,312.0]
[1741259146050,103.8778,151.66,151.55,33.48802603]
[1741259146345,103.8778,151.66,151.58,33.48802603]
[1741259146513,103.8778,151.66,151.59,0.14216157]
[1741259147146,103.8778,151.66,151.58,0.14216157]
[1741259147527,6.5936,151.66,151.62,0.14216157]
[1741259147720,6.5933,151.67,151.62,0.14216157]
[1741259148442,87.3928,151.68,151.63,0.14216157]
[1741259149148,87.3928,151.68,151.62,0.14216157]
[1741259149444,87.3928,151.68,151.62,33.6301876]
[1741259149614,6.0502,151.71,151.64,0.14216157]
[1741259149815,6.5919,151.7,151.64,0.14216157]
[1741259150216,6.5919,151.7,151.63,0.14216157]
[1741259150522,80.8,151.73,151.67,0.14216157]
[1741259150732,6.5912,151.72,151.67,0.14216157]
[1741259150925,23.0689,151.72,151.65,0.14216157]
[1741259151733,6.5912,151.72,151.65,33.6301876]
[1741259151939,6.5912,151.72,151.67,0.14216157]
[1741259152238,80.8,151.73,151.67,0.14216157]
[1741259152447,80.8,151.73,151.67,33.6301876]
[1741259152755,5.9615,151.74,151.69,0.14216157]
[1741259153640,0.03,151.74,151.69,0.14216157]
[1741259154243,0.03,151.74,151.68,0.14216157]
[1741259154758,20.0,151.73,151.67,80.3]
[1741259154937,20.0,151.69,151.62,86.8604]
[1741259155139,80.8,151.71,151.62,86.8604]
[1741259155452,80.8,151.71,151.62,398.8604]
[1741259155655,20.0,151.67,151.58,86.8105]
[1741259155848,20.0,151.67,151.58,120.29852603]
[1741259156354,20.0,151.67,151.58,0.033]
[1741259156355,20.0,151.63,151.58,0.033]
[1741259156557,80.8,151.62,151.58,0.033]
[1741259156736,80.8,151.61,151.58,0.033]
[1741259157762,86.7363,151.61,151.58,0.033]
[1741259158061,80.8,151.61,151.58,0.033]
[1741259158264,86.7363,151.61,151.58,0.033]
[1741259158758,80.8,151.61,151.59,0.14216157]
[1741259159134,86.7363,151.61,151.59,0.14216157]
[1741259159666,80.8,151.61,151.58,0.033]
[1741259159840,86.7364,151.61,151.58,0.033]
[1741259161070,80.8,151.61,151.58,0.033]
[1741259161371,5.9351,151.64,151.59,0.14216157]
[1741259161573,80.8,151.67,151.59,33.6301876]
[1741259161574,5.9343,151.66,151.59,33.6301876]
[1741259161760,5.9335,151.68,151.62,0.14216157]
[1741259162072,80.8,151.7,151.64,0.14216157]
[1741259162277,5.9331,151.69,151.64,0.14216157]
[1741259162445,5.9331,151.69,151.64,312.14216157]
[1741259163170,5.9331,151.69,151.63,0.14216157]
[1741259163540,20.7659,151.69,151.62,0.14216157]
[1741259164352,20.0,151.66,151.62,0.14216157]
[1741259164544,80.8,151.65,151.58,0.033]
[1741259164775,80.8,151.64,151.58,0.033]
[1741259165268,5.9355,151.63,151.58,0.033]
[1741259166171,5.9355,151.63,151.59,0.14216157]
[1741259166551,86.7351,151.64,151.59,0.14216157]
[1741259166875,86.7351,151.64,151.58,0.033]
[1741259167571,86.7351,151.64,151.59,0.14216157]
[1741259167993,101.5728,151.64,151.58,0.033]
[1741259168690,80.8,151.63,151.58,0.033]
[1741259169071,80.8,151.63,151.56,33.6301876]
[1741259169281,5.9358,151.62,151.56,33.6301876]
[1741259169575,5.9358,151.62,151.6,0.14216157]
[1741259169993,5.9358,151.62,151.56,33.48802603]
[1741259170194,20.7755,151.62,151.56,0.14216157]
[1741259170486,20.0,151.59,151.53,33.48802603]
[1741259170691,20.0,151.58,151.52,33.48802603]
[1741259171080,20.0,151.58,151.54,0.14216157]
[1741259171386,80.8,151.61,151.54,33.48802603]
[1741259171387,5.9366,151.6,151.54,33.48802603]
[1741259171591,5.9366,151.6,151.56,0.14216157]
[1741259171791,6.3362,151.67,151.58,33.6301876]
[1741259172093,6.3362,151.67,151.62,0.14216157]
[1741259172094,5.934,151.67,151.62,0.14216157]
[1741259172304,80.8,151.68,151.62,0.14216157]
[1741259172305,41.40309736,151.85,151.73,0.42648471]
[1741259172594,41.40309736,151.85,151.81,33.6301876]
[1741259172980,19.863066,151.82,151.81,33.6301876]
[1741259173294,19.863066,151.82,151.81,0.14216157]
[1741259173501,19.863066,151.82,151.81,33.91451074]
[1741259173667,19.863066,151.82,151.81,52.5641596]
[1741259173863,19.863066,151.82,151.81,33.91451074]
[1741259174487,19.863066,151.82,151.81,0.42648471]
[1741259174693,19.863066,151.82,151.81,54.65692497]
[1741259175063,19.863066,151.82,151.81,54.37260183]
[1741259175289,19.863066,151.82,151.81,117.21729272]
[1741259176373,0.03,151.85,151.82,0.14216157]
[1741259176799,20.0,151.89,151.82,0.14216157]
[1741259176979,20.0,151.89,151.82,54.37260183]
[1741259177162,20.0,151.89,151.84,0.14216157]
[1741259177368,80.8,151.93,151.84,0.14216157]
[1741259177670,80.8,151.92,151.84,0.14216157]
[1741259177877,80.8,151.92,151.86,0.14216157]
[1741259178682,80.8,151.92,151.9,20.38926272]
[1741259179009,86.7243,151.92,151.9,20.38926272]
[1741259179576,86.7243,151.92,151.91,4.48890649]
[1741259179991,80.8,151.92,151.91,4.48890649]
[1741259180593,80.8,151.92,151.91,4.63106806]
[1741259180790,80.8,151.92,151.91,316.63106806]
[1741259181098,80.8,151.92,151.91,312.14216157]
[1741259181287,86.7229,151.96,151.92,0.14216157]
[1741259181980,86.7229,151.96,151.91,0.14216157]
[1741259182385,86.7211,152.0,151.96,0.14216157]
[1741259182792,20.0,151.97,151.96,0.14216157]
[1741259183396,20.0,151.97,151.96,13.57414552]
[1741259183600,101.5237,152.0,151.96,13.57414552]
[1741259184174,101.5237,152.0,151.96,4.48338996]
[1741259184784,101.5237,152.0,151.98,312.0]
[1741259185000,101.5237,152.0,151.96,4.48338996]
[1741259185202,101.5237,152.0,151.97,6.232e-05]
[1741259185797,20.0,151.98,151.97,6.232e-05]
[1741259186591,20.0,151.96,151.95,40.92068702]
[1741259187599,20.0,151.96,151.95,31.72511785]
[1741259187808,20.0,151.97,151.95,1.785e-05]
[1741259188000,5.9226,151.96,151.95,1.785e-05]
[1741259188482,20.7291,151.96,151.87,0.14216157]
[1741259189297,5.9226,151.96,151.89,54.37260183]
[1741259189496,5.9226,151.96,151.95,312.14216157]
[1741259189695,25.9226,151.96,151.95,312.14216157]
[1741259189883,0.03,152.01,151.95,312.0]
[1741259190084,0.03,152.01,151.96,0.14216157]
[1741259190403,20.0,151.99,151.9,134.53044026]
[1741259190583,20.0,151.99,151.89,0.14216157]
[1741259190784,20.0,151.97,151.89,0.14216157]
[1741259191103,20.0,151.97,151.9,0.14216157]
[1741259191287,0.14216157,152.0,151.9,0.14216157]
[1741259191611,20.0,151.98,151.89,0.14216157]
[1741259191904,96.9215,151.97,151.89,0.14216157]
[1741259192087,20.0,151.94,151.89,0.14216157]
[1741259192398,20.0,151.93,151.88,0.14216157]
[1741259192783,20.0,151.93,151.88,54.37260183]
[1741259192983,80.8,151.96,151.92,0.14216157]
[1741259193183,20.0,151.93,151.92,0.14216157]
[1741259193609,20.0,151.93,151.89,0.14216157]
[1741259194098,24.6076,151.93,151.89,0.14216157]
[1741259194280,24.6076,151.93,151.89,54.37260183]
[1741259194281,4.6076,151.93,151.89,54.37260183]
[1741259194479,4.6067,151.95,151.91,54.37260183]
[1741259194684,4.6067,151.95,151.91,33.4838023]
[1741259194988,4.6067,151.95,151.93,0.14216157]
[1741259195399,16.1236,151.95,151.92,0.14216157]
[1741259195896,27.6353,151.98,151.89,33.4838023]
[1741259196104,80.8,151.97,151.91,0.14216157]
[1741259196584,80.8,151.97,151.96,312.0]
[1741259196782,80.8,151.97,151.9,33.34164073]
[1741259196980,80.8,151.97,151.88,80.333]
[1741259196981,80.8,151.97,151.91,0.14216157]
[1741259197384,80.8,151.97,151.89,0.14216157]
[1741259197587,20.0,151.94,151.88,80.333]
[1741259197802,20.0,151.94,151.9,312.0]
[1741259197803,20.0,151.93,151.9,312.0]
[1741259198011,4.6076,151.92,151.9,312.0]
[1741259198310,4.6076,151.92,151.91,0.14216157]
[1741259198817,16.1268,151.92,151.88,0.033]
[1741259199022,4.6076,151.92,151.88,0.033]
[1741259199201,4.6076,151.92,151.88,33.5168023]
[1741259199399,16.1268,151.92,151.88,0.17516157]
[1741259199614,16.1268,151.92,151.88,0.033]
[1741259201409,16.1268,151.92,151.91,312.14216157]
[1741259201610,16.1268,151.92,151.91,0.14216157]
[1741259202589,16.1268,151.92,151.91,312.14216157]
[1741259204021,4.6076,151.92,151.91,312.14216157]
[1741259205797,14.4812,151.92,151.88,0.033]
[1741259206818,14.4812,151.92,151.9,0.14216157]
[1741259207111,4.6076,151.92,151.9,0.14216157]
[1741259207311,4.6076,151.92,151.89,0.14216157]
[1741259208017,4.6076,151.92,151.88,0.033]
[1741259210310,4.6076,151.92,151.9,312.0]
[1741259210617,4.6076,151.92,151.88,0.033]
[1741259211612,80.8,151.91,151.82,86.3292]
[1741259211921,80.8,151.9,151.82,86.3292]
[1741259212495,80.8,151.9,151.83,0.14216157]
[1741259212802,80.8,151.9,151.84,312.0]
[1741259213315,80.8,151.9,151.85,0.14216157]
[1741259213518,80.8,151.9,151.83,33.4838023]
[1741259213721,80.8,151.9,151.84,33.34164073]
[1741259214020,80.8,151.9,151.85,0.14216157]
[1741259214215,11.5214,151.89,151.85,0.14216157]
[1741259214414,11.5214,151.89,151.83,33.4838023]
[1741259214718,3.2918,151.89,151.86,0.14216157]
[1741259215306,3.2918,151.89,151.83,0.14216157]
[1741259215500,8.2296,151.89,151.83,0.14216157]
[1741259216219,8.2296,151.89,151.83,33.4838023]
[1741259216407,8.2296,151.89,151.87,0.14216157]
[1741259217113,8.2296,151.89,151.84,0.14216157]
[1741259217493,8.2296,151.89,151.83,0.14216157]
[1741259218521,80.8,151.88,151.81,0.033]
[1741259218700,87.1613,151.87,151.81,0.033]
[1741259218901,20.0,151.84,151.81,0.033]
[1741259219901,20.0,151.84,151.81,312.033]
[1741259220298,20.0,151.84,151.82,0.14216157]
[1741259220503,20.0,151.84,151.81,312.033]
[1741259220504,20.0,151.84,151.81,0.033]
[1741259221423,80.8,151.86,151.81,33.37464073]
[1741259221610,80.8,151.86,151.84,0.14216157]
[1741259221796,80.8,151.91,151.84,0.14216157]
[1741259222000,80.8,151.91,151.84,33.4838023]
[1741259223126,3.2918,151.89,151.86,33.34164073]
[1741259223310,3.2918,151.89,151.87,0.14216157]
[1741259223512,3.2918,151.89,151.88,312.14216157]
[1741259223804,0.03,151.92,151.89,0.14216157]
[1741259224047,0.03,151.92,151.89,33.4838023]
[1741259225005,0.03,151.92,151.91,0.14216157]
[1741259225820,0.03,151.92,151.9,0.14216157]
[1741259226511,0.03,151.92,151.91,0.14216157]
[1741259226709,0.03,151.92,151.91,132.7177743]
[1741259227009,0.03,151.92,151.91,452.8328743]
[1741259227617,0.03,151.92,151.91,433.8989023]
[1741259228002,0.03,151.92,151.91,452.54855116]
[1741259228329,0.03,151.92,151.91,452.8328743]
[1741259228831,0.03,151.92,151.91,433.8989023]
[1741259229032,0.03,151.92,151.91,392.44216157]
[1741259229428,0.03,151.92,151.91,312.14216157]
[1741259229828,0.03,151.92,151.91,364.13345116]
[1741259230214,0.03,151.92,151.91,444.43345116]
[1741259230527,0.03,151.92,151.91,451.3005743]
[1741259230712,0.03,151.92,151.91,585.8005743]
[1741259231115,0.03,151.92,151.91,579.2177743]
[1741259231631,0.03,151.92,151.91,585.8005743]
[1741259232008,0.03,151.92,151.91,579.2177743]
[1741259232207,0.03,151.92,151.91,312.0]
[1741259232612,0.03,151.92,151.91,345.34164073]
[1741259233017,0.03,151.92,151.91,364.13345116]
[1741259233932,0.03,151.92,151.91,312.0]
[1741259234134,0.03,151.92,151.91,312.14216157]
[1741259235616,0.03,151.92,151.91,345.4838023]
[1741259236232,0.03,151.92,151.91,364.13345116]
[1741259236540,0.03,151.92,151.91,345.4838023]
[1741259236738,0.03,151.92,151.91,312.0]
[1741259236917,0.03,151.92,151.91,312.14216157]
[1741259237435,0.03,151.92,151.91,345.4838023]
[1741259237627,0.03,151.92,151.91,364.13345116]
[1741259238028,0.03,151.92,151.91,312.14216157]
[1741259238231,0.03,151.92,151.91,312.0]
[1741259238427,0.03,151.92,151.91,312.14216157]
[1741259244619,0.03,151.92,151.85,80.3]
[1741259245128,0.03,151.92,151.86,0.14216157]
[1741259246041,20.0,151.88,151.81,0.033]
[1741259246343,100.8,151.88,151.81,0.033]
[1741259246553,11.5229,151.87,151.81,0.033]
[1741259246844,3.2916,151.9,151.86,0.14216157]
[1741259247024,3.2916,151.9,151.86,33.4838023]
[1741259247230,3.2916,151.9,151.86,0.14216157]
[1741259247627,3.2916,151.9,151.89,0.14216157]
[1741259248243,3.2916,151.9,151.86,0.14216157]
[1741259248924,84.0914,151.91,151.89,0.14216157]
[1741259249123,80.8,151.91,151.89,0.14216157]
[1741259249325,3.3212,151.92,151.89,0.14216157]
[1741259250039,3.3212,151.92,151.88,0.14216157]
[1741259250447,23.3212,151.92,151.86,0.14216157]
[1741259250636,31.5492,151.92,151.86,0.14216157]
[1741259251244,31.5492,151.92,151.86,312.14216157]
[1741259251744,80.8,151.91,151.86,312.14216157]
[1741259252240,80.8,151.91,151.86,312.0]
[1741259252760,11.5206,151.9,151.87,0.14216157]
[1741259253243,11.5206,151.9,151.86,312.0]
[1741259253244,80.8,151.89,151.81,0.033]
[1741259253446,20.0,151.85,151.81,0.033]
[1741259253647,20.0,151.82,151.81,0.033]
[1741259253836,20.0,151.82,151.81,0.0001]
[1741259254341,20.0,151.84,151.81,0.0001]
[1741259254542,20.0,151.84,151.73,11.92064583]
[1741259254852,20.0,151.78,151.73,0.033]
[1741259255150,3.2938,151.8,151.73,0.033]
[1741259255351,80.8,151.79,151.73,0.033]
[1741259257142,3.2944,151.77,151.76,0.14216157]
[1741259257451,84.0941,151.79,151.74,0.14216157]
[1741259258452,84.0941,151.79,151.75,33.4838023]
[1741259258632,3.2933,151.82,151.77,0.14216157]
[1741259259031,3.2933,151.82,151.77,33.4838023]
[1741259259239,3.2933,151.82,151.78,0.14216157]
[1741259259649,3.2933,151.82,151.77,0.14216157]
[1741259260054,3.2933,151.82,151.77,33.4838023]
[1741259260451,3.2933,151.82,151.81,312.14216157]
[1741259261043,80.8,151.83,151.82,0.14216157]
[1741259261367,3.2932,151.83,151.8,0.14216157]
[1741259261540,20.0,151.84,151.8,0.14216157]
[1741259261739,2.634,151.86,151.81,33.4838023]
[1741259261956,2.6333,151.9,151.83,33.4838023]
[1741259262259,2.6333,151.9,151.85,0.14216157]
[1741259263662,2.6333,151.9,151.84,0.14216157]
[1741259264078,2.6333,151.9,151.89,0.14216157]
[1741259264352,2.6333,151.9,151.88,312.0]
[1741259264537,20.0,151.86,151.76,256.18694073]
[1741259264742,80.8,151.85,151.76,88.3453]
[1741259264942,2.6343,151.84,151.77,33.34164073]
[1741259265169,2.6343,151.84,151.78,0.14216157]
[1741259265374,2.6343,151.84,151.8,312.0]
[1741259265665,2.6343,151.84,151.81,0.14216157]
[1741259265839,9.2201,151.84,151.81,0.14216157]
[1741259266172,90.0201,151.84,151.76,6.1344]
[1741259266550,90.0201,151.84,151.75,80.3]
[1741259266763,90.0201,151.84,151.76,0.14216157]
[1741259267165,103.1918,151.84,151.76,0.14216157]
[1741259267374,20.0,151.8,151.75,80.3]
[1741259267577,20.0,151.8,151.76,13.05118606]
[1741259267764,20.0,151.8,151.77,0.14216157]
[1741259268149,20.0,151.79,151.73,0.033]
[1741259268487,80.8,151.78,151.73,0.033]
[1741259268970,80.8,151.78,151.74,0.14216157]
[1741259269144,2.6355,151.77,151.74,0.14216157]
[1741259269764,9.2244,151.77,151.73,312.033]
[1741259269972,9.2244,151.77,151.74,0.14216157]
[1741259270669,80.8,151.76,151.72,0.033]
[1741259270973,9.2244,151.77,151.72,0.033]
[1741259270974,80.8,151.75,151.72,0.033]
[1741259271170,22.6362,151.73,151.72,0.033]
[1741259271546,22.6362,151.73,151.71,0.033]
[1741259272672,2.6362,151.73,151.71,0.033]
[1741259273167,2.6361,151.74,151.71,0.033]
[1741259273545,2.6361,151.74,151.73,312.14216157]
[1741259274144,2.6361,151.74,151.73,0.14216157]
[1741259275370,83.4359,151.75,151.71,0.17516157]
[1741259275563,2.6352,151.79,151.73,0.14216157]
[1741259275874,2.6352,151.79,151.74,33.4838023]
[1741259277274,9.2232,151.79,151.78,312.14216157]
[1741259277468,9.2232,151.79,151.74,0.14216157]
[1741259277672,20.0,151.76,151.71,0.033]
[1741259278060,20.0,151.76,151.71,0.17516157]
[1741259278474,20.0,151.77,151.71,312.17516157]
[1741259278974,20.0,151.77,151.71,0.17516157]
[1741259279173,20.0,151.76,151.71,0.17516157]
[1741259279875,20.0,151.76,151.74,0.033]
[1741259280498,2.6352,151.79,151.74,0.033]
[1741259281183,9.2232,151.79,151.74,0.033]
[1741259281380,20.0,151.76,151.74,0.033]
[1741259281570,80.8,151.78,151.74,0.033]
[1741259281969,1.9764,151.79,151.78,0.14216157]
[1741259282488,1.9762,151.8,151.75,0.14216157]
[1741259283085,6.9169,151.8,151.74,0.17516157]
[1741259283266,80.8,151.79,151.74,0.17516157]
[1741259283578,80.8,151.79,151.74,0.033]
[1741259284183,80.8,151.79,151.74,0.17516157]
[1741259284583,82.7765,151.79,151.74,0.17516157]
[1741259284782,80.8,151.79,151.74,0.033]
[1741259284972,1.9765,151.78,151.74,0.033]
[1741259285373,1.9765,151.78,151.75,0.14216157]
[1741259285882,6.9178,151.78,151.74,0.033]
[1741259287066,1.9765,151.78,151.74,0.033]
[1741259287587,1.9765,151.78,151.75,0.14216157]
[1741259287779,6.9178,151.78,151.75,0.14216157]
[1741259288175,6.9178,151.78,151.74,0.033]
[1741259288785,4.9413,151.78,151.74,0.033]
[1741259288987,24.9413,151.78,151.76,0.14216157]
[1741259289283,20.0,151.77,151.74,0.033]
[1741259290586,4.9413,151.78,151.74,0.033]
[1741259290966,1.9766,151.77,151.74,0.033]
[1741259291677,1.9762,151.8,151.74,0.033]
[1741259291877,6.9169,151.8,151.74,0.033]
[1741259292265,6.9169,151.8,151.75,312.14216157]
[1741259292668,20.0,151.77,151.75,0.14216157]
[1741259292899,1.9768,151.76,151.74,0.033]
[1741259293369,21.9768,151.76,151.74,0.033]
[1741259293976,100.8,151.75,151.71,0.033]
[1741259294178,100.8,151.75,151.71,0.0001]
[1741259295093,20.0,151.72,151.71,0.0001]
[1741259295400,80.8,151.73,151.71,0.0001]
[1741259295575,80.8,151.73,151.72,0.14216157]
[1741259295989,1.977,151.74,151.71,0.0001]
[1741259296993,20.0,151.75,151.71,0.0001]
[1741259297289,20.0,151.75,151.72,0.14216157]
[1741259297486,1.9765,151.78,151.72,0.14216157]
[1741259298388,6.9178,151.78,151.72,0.14216157]
[1741259298773,6.9178,151.78,151.72,312.14216157]
[1741259298976,80.8,151.77,151.71,0.0001]
[1741259299189,20.0,151.74,151.71,0.0001]
[1741259299378,20.0,151.73,151.71,0.0001]
[1741259300292,80.8,151.76,151.71,0.0001]
[1741259300490,1.9769,151.75,151.71,0.0001]
[1741259300795,6.9192,151.75,151.71,0.0001]
[1741259300993,1.9769,151.75,151.71,0.14226157]
[1741259301381,6.9192,151.75,151.71,0.14226157]
[1741259301888,6.9192,151.75,151.71,0.0001]
[1741259302088,6.9192,151.75,151.72,0.14216157]
[1741259302771,6.9192,151.75,151.71,0.0001]
[1741259304183,21.9769,151.75,151.71,0.14226157]
[1741259304779,1.9769,151.75,151.71,0.14226157]
[1741259304985,6.9192,151.75,151.71,0.0001]
[1741259305186,6.9492,151.75,151.71,0.0001]
[1741259305386,2.0069,151.75,151.71,0.0001]
[1741259305587,2.0069,151.75,151.74,312.14216157]
[1741259307091,6.9492,151.75,151.71,0.0001]
[1741259308499,24.9723,151.75,151.71,0.0001]
[1741259308889,20.0,151.72,151.71,0.0001]
[1741259310008,20.0,151.74,151.72,0.14216157]
[1741259310517,0.03,151.75,151.72,19.07613357]
[1741259310712,0.03,151.75,151.74,19.07613357]
[1741259311018,0.03,151.75,151.74,52.4177743]
[1741259312101,10.25329133,151.84,151.76,0.42648471]
[1741259312288,10.25329133,151.84,151.81,0.14216157]
[1741259312488,10.25329133,151.84,151.81,33.4838023]
[1741259312693,10.25329133,151.84,151.83,0.14216157]
[1741259313407,10.25329133,151.84,151.81,0.14216157]
[1741259313603,10.25329133,151.84,151.83,312.14216157]
[1741259313913,0.03,151.84,151.83,312.14216157]
[1741259315305,0.03,151.84,151.8,80.3]
[1741259315484,0.03,151.84,151.81,0.14216157]
[1741259315689,0.03,151.84,151.8,80.3]
[1741259315909,0.03,151.84,151.81,0.14216157]
[1741259316098,0.03,151.84,151.75,121.68014073]
[1741259316301,0.03,151.84,151.77,0.14216157]
[1741259316491,0.03,151.84,151.76,52.13345116]
[1741259316681,2.0057,151.84,151.77,0.14216157]
[1741259316890,2.0057,151.84,151.77,33.4838023]
[1741259317595,2.0057,151.84,151.79,33.4838023]
[1741259317813,2.0057,151.84,151.79,113.7838023]
[1741259318014,0.03,151.84,151.81,0.14216157]
[1741259318213,0.03,151.84,151.83,312.14216157]
[1741259319816,0.03,151.84,151.83,80.44216157]
[1741259320009,0.03,151.84,151.83,138.7602743]
[1741259320201,0.03,151.84,151.83,145.3465743]
[1741259321008,0.03,151.84,151.83,138.7602743]
[1741259321494,0.03,151.84,151.83,145.3465743]
[1741259321697,0.03,151.84,151.83,147.3150743]
[1741259321912,0.03,151.84,151.83,281.8150743]
[1741259322800,0.03,151.84,151.83,593.8150743]
[1741259326814,0.03,151.84,151.83,553.46064886]
[1741259327122,0.00465264,151.91,151.84,0.14216157]
[1741259327309,0.00465264,151.91,151.84,80.44216157]
[1741259328317,20.0,151.89,151.84,80.3]
[1741259328824,6.9133,151.88,151.85,0.14216157]
[1741259329713,6.9133,151.88,151.84,0.14216157]
[1741259331029,1.9752,151.88,151.84,0.14216157]
[1741259332206,6.9133,151.88,151.84,0.14216157]
[1741259332731,6.9133,151.88,151.82,0.14216157]
[1741259333432,4.9381,151.88,151.82,0.14216157]
[1741259334019,4.9381,151.88,151.85,0.14216157]
[1741259334628,1.9751,151.89,151.84,0.14216157]
[1741259335130,1.9751,151.89,151.84,80.44216157]
[1741259335429,20.0,151.89,151.84,80.44216157]
[1741259336648,1.97945264,151.91,151.84,113.7838023]
[1741259336828,1.97945264,151.91,151.84,120.3695023]
[1741259337027,1.97945264,151.91,151.86,0.14216157]
[1741259337332,1.97945264,151.91,151.86,113.7838023]
[1741259337507,0.00465264,151.91,151.9,312.14216157]
[1741259338125,0.00465264,151.91,151.9,0.14216157]
[1741259338326,20.00465264,151.91,151.9,0.14216157]
[1741259338630,20.0,151.9,151.86,80.3]
[1741259338822,20.0,151.9,151.83,33.34164073]
[1741259339023,20.0,151.9,151.84,0.14216157]
[1741259339535,6.9128,151.89,151.83,0.14216157]
[1741259340119,80.8,151.88,151.8,80.3]
[1741259340323,80.8,151.87,151.8,80.3]
[1741259341018,80.8,151.87,151.82,312.0]
[1741259341336,80.8,151.87,151.83,0.17516157]
[1741259341838,1.9755,151.86,151.83,0.033]
[1741259342415,26.9142,151.86,151.83,0.033]
[1741259344114,80.8,151.85,151.76,80.3]
[1741259344320,20.0,151.81,151.76,80.3]
[1741259344527,20.0,151.8,151.76,312.0]
[1741259345334,100.8,151.79,151.72,80.333]
[1741259345536,100.8,151.79,151.72,113.67464073]
[1741259345720,1.9765,151.78,151.73,33.4838023]
[1741259346137,1.9765,151.78,151.75,0.14216157]
[1741259346316,1.9765,151.78,151.77,312.14216157]
[1741259347020,1.976,151.82,151.78,0.14216157]
[1741259347734,1.976,151.82,151.76,0.42648471]
[1741259348633,1.976,151.82,151.76,0.14216157]
[1741259348843,6.916,151.82,151.76,0.14216157]
[1741259349019,16.7961,151.82,151.76,0.14216157]
[1741259349637,16.7961,151.82,151.75,80.3]
[1741259349836,80.8,151.81,151.72,214.833]
[1741259350028,80.8,151.81,151.73,0.14216157]
[1741259350223,80.8,151.81,151.77,0.14216157]
[1741259350636,80.8,151.81,151.73,0.14216157]
[1741259351019,80.8,151.81,151.74,33.34164073]
[1741259351330,80.8,151.81,151.76,0.14216157]
[1741259351918,1.9762,151.8,151.75,0.28432314]
[1741259352127,1.9762,151.8,151.77,0.14216157]
[1741259353046,1.9762,151.8,151.76,0.14216157]
[1741259353843,1.9762,151.8,151.79,312.14216157]
[1741259354037,4.9398,151.83,151.79,312.14216157]
[1741259354247,6.9156,151.83,151.8,0.14216157]
[1741259354847,6.9156,151.83,151.76,33.4838023]
[1741259355033,1.9758,151.83,151.78,33.34164073]
[1741259355341,1.9758,151.83,151.79,33.76812544]
[1741259355923,20.0,151.86,151.81,0.14216157]
[1741259356144,1.9756,151.85,151.81,80.44216157]
[1741259357223,1.9756,151.85,151.81,113.7838023]
[1741259357424,1.9756,151.85,151.84,312.14216157]
[1741259358548,6.9135,151.88,151.85,0.14216157]
[1741259359323,6.9135,151.88,151.82,0.14216157]